[Event "Live Chess"]
[Site "Chess.com"]
[Date "2023.05.20"]
[Round "-"]
[White "LiamBellwood"]
[Black "terrub10"]
[Result "1-0"]
[WhiteElo "2093"]
[BlackElo "517"]
[TimeControl "300"]
[EndTime "10:06:17 PDT"]
[Termination "LiamBellwood won by checkmate"]

1. d4 {[%clk 0:04:58.4]} 1... d5 {[%clk 0:04:52.6]} 2. Nc3 {[%clk 0:04:58.3]}
2... Nf6 {[%clk 0:04:45.9]} 3. Bf4 {[%clk 0:04:57]} 3... Nc6 {[%clk 0:04:40.2]}
4. Nb5 {[%clk 0:04:56.2]} 4... e5 {[%clk 0:04:27.9]} 5. Bxe5 {[%clk 0:04:55.1]}
5... Nxe5 {[%clk 0:04:25.5]} 6. dxe5 {[%clk 0:04:55]} 6... Bd7 {[%clk
0:04:18.8]} 7. exf6 {[%clk 0:04:44.2]} 7... Bxb5 {[%clk 0:04:17.1]} 8. e3 {[%clk
0:04:43.6]} 8... gxf6 {[%clk 0:04:13.2]} 9. Bxb5+ {[%clk 0:04:42.2]} 9... c6
{[%clk 0:04:04.5]} 10. Bd3 {[%clk 0:04:41.2]} 10... c5 {[%clk 0:03:51.5]} 11.
Bb5+ {[%clk 0:04:38.7]} 11... Ke7 {[%clk 0:03:46.7]} 12. Nf3 {[%clk 0:04:38.3]}
12... c4 {[%clk 0:03:43.4]} 13. O-O {[%clk 0:04:34.5]} 13... f5 {[%clk
0:03:39.3]} 14. Qd4 {[%clk 0:04:30.3]} 14... Rg8 {[%clk 0:03:33.6]} 15. Qe5#
{[%clk 0:04:29.2]} 1-0

[Event "Live Chess"]
[Site "Chess.com"]
[Date "2023.05.20"]
[Round "-"]
[White "Bob2pen"]
[Black "OceanFloater"]
[Result "1-0"]
[WhiteElo "1777"]
[BlackElo "984"]
[TimeControl "300"]
[EndTime "10:06:23 PDT"]
[Termination "Bob2pen won by resignation"]

1. c4 {[%clk 0:04:58.1]} 1... c6 {[%clk 0:04:58.8]} 2. g3 {[%clk 0:04:57]} 2...
d5 {[%clk 0:04:58.1]} 3. Bg2 {[%clk 0:04:56.3]} 3... Nf6 {[%clk 0:04:55.5]} 4.
Nf3 {[%clk 0:04:55.1]} 4... Bg4 {[%clk 0:04:50.1]} 5. O-O {[%clk 0:04:49.4]}
5... Nbd7 {[%clk 0:04:40.1]} 6. d3 {[%clk 0:04:44.1]} 6... e5 {[%clk 0:04:37.2]}
7. cxd5 {[%clk 0:04:40.2]} 7... cxd5 {[%clk 0:04:35.6]} 8. Qa4 {[%clk
0:04:38.7]} 8... a6 {[%clk 0:04:24.3]} 9. h3 {[%clk 0:04:03.3]} 9... Be6 {[%clk
0:04:19.8]} 10. Ng5 {[%clk 0:03:59.9]} 10... b5 {[%clk 0:04:12.2]} 11. Qd1
{[%clk 0:03:54.9]} 11... h6 {[%clk 0:03:59.8]} 12. Nxe6 {[%clk 0:03:53.2]} 12...
fxe6 {[%clk 0:03:57.8]} 13. Nc3 {[%clk 0:03:49.8]} 13... Rc8 {[%clk 0:03:52.1]}
14. Bd2 {[%clk 0:03:46.6]} 14... d4 {[%clk 0:03:45.8]} 15. Ne4 {[%clk
0:03:44.5]} 15... Nxe4 {[%clk 0:03:44.5]} 16. Bxe4 {[%clk 0:03:42.5]} 16... Nf6
{[%clk 0:03:42]} 17. Bg6+ {[%clk 0:03:38.8]} 17... Kd7 {[%clk 0:03:31.8]} 18. a4
{[%clk 0:03:37.1]} 18... Qb6 {[%clk 0:03:10.1]} 19. axb5 {[%clk 0:03:33.5]}
19... axb5 {[%clk 0:03:08.7]} 20. Qb3 {[%clk 0:03:26.6]} 20... Nd5 {[%clk
0:03:04.4]} 21. Be4 {[%clk 0:03:16.4]} 21... Bd6 {[%clk 0:02:53.1]} 22. Bxd5
{[%clk 0:03:03]} 22... exd5 {[%clk 0:02:51.7]} 23. Qxd5 {[%clk 0:03:02]} 23...
Rhf8 {[%clk 0:02:45.1]} 24. Bb4 {[%clk 0:02:56.8]} 24... Rc6 {[%clk 0:02:36.8]}
25. Rfc1 {[%clk 0:02:48.3]} 25... Rf6 {[%clk 0:02:24.2]} 26. Rxc6 {[%clk
0:02:43.8]} 26... Qxc6 {[%clk 0:02:15.5]} 27. Ra7+ {[%clk 0:02:42.2]} 27... Kc8
{[%clk 0:02:13]} 28. Qxc6+ {[%clk 0:02:40.5]} 1-0

[Event "Live Chess"]
[Site "Chess.com"]
[Date "2023.05.20"]
[Round "-"]
[White "ossie57"]
[Black "LaupMiths"]
[Result "1-0"]
[WhiteElo "1842"]
[BlackElo "1827"]
[TimeControl "300"]
[EndTime "10:06:36 PDT"]
[Termination "ossie57 won by checkmate"]

1. d4 {[%clk 0:04:57.6]} 1... Nf6 {[%clk 0:04:56.6]} 2. Nc3 {[%clk 0:04:56.9]}
2... e6 {[%clk 0:04:56]} 3. Bf4 {[%clk 0:04:56]} 3... a6 {[%clk 0:04:53.9]} 4.
e4 {[%clk 0:04:50.3]} 4... d5 {[%clk 0:04:53.3]} 5. e5 {[%clk 0:04:49.3]} 5...
Nfd7 {[%clk 0:04:52.3]} 6. Qd3 {[%clk 0:04:47.9]} 6... c5 {[%clk 0:04:50.6]} 7.
O-O-O {[%clk 0:04:45.8]} 7... Nc6 {[%clk 0:04:49.4]} 8. Qg3 {[%clk 0:04:44.6]}
8... cxd4 {[%clk 0:04:47.2]} 9. Nce2 {[%clk 0:04:41.9]} 9... Qb6 {[%clk
0:04:45.1]} 10. Nf3 {[%clk 0:04:35.9]} 10... g6 {[%clk 0:04:41.7]} 11. h4 {[%clk
0:04:34.8]} 11... Bc5 {[%clk 0:04:37.6]} 12. h5 {[%clk 0:04:34.1]} 12... Qa5
{[%clk 0:04:23.7]} 13. hxg6 {[%clk 0:04:30.9]} 13... fxg6 {[%clk 0:04:21.7]} 14.
Kb1 {[%clk 0:04:15.8]} 14... Ne7 {[%clk 0:04:13.5]} 15. Nfxd4 {[%clk 0:04:07.8]}
15... Nf8 {[%clk 0:04:10.3]} 16. Bh6 {[%clk 0:03:45.2]} 16... Bd7 {[%clk
0:04:06.7]} 17. Bxf8 {[%clk 0:03:42.5]} 17... Kxf8 {[%clk 0:04:05.2]} 18. Nf4
{[%clk 0:03:10.9]} 18... Kf7 {[%clk 0:03:58.3]} 19. Be2 {[%clk 0:03:00.5]} 19...
Nf5 {[%clk 0:03:55.8]} 20. Nxf5 {[%clk 0:02:59.2]} 20... gxf5 {[%clk 0:03:54.1]}
21. Bh5+ {[%clk 0:02:54.2]} 21... Kf8 {[%clk 0:03:47.6]} 22. Qg5 {[%clk
0:02:47.7]} 22... Be7 {[%clk 0:03:35]} 23. Qh6+ {[%clk 0:02:37.4]} 23... Kg8
{[%clk 0:03:34]} 24. Ng6 {[%clk 0:02:26.1]} 24... Bf8 {[%clk 0:03:21.9]} 25.
Nxf8 {[%clk 0:02:09.6]} 25... Rxf8 {[%clk 0:03:19.5]} 26. Qg5# {[%clk
0:02:05.5]} 1-0

[Event "Live Chess"]
[Site "Chess.com"]
[Date "2023.05.20"]
[Round "-"]
[White "Duke_of_Bebington"]
[Black "JackCheetham1"]
[Result "1-0"]
[WhiteElo "1575"]
[BlackElo "1692"]
[TimeControl "300"]
[EndTime "10:06:42 PDT"]
[Termination "Duke_of_Bebington won on time"]

1. e4 {[%clk 0:04:58.4]} 1... c5 {[%clk 0:04:58.8]} 2. c3 {[%clk 0:04:57.1]}
2... d6 {[%clk 0:04:57.9]} 3. d4 {[%clk 0:04:56.3]} 3... cxd4 {[%clk 0:04:57.8]}
4. cxd4 {[%clk 0:04:55.5]} 4... Nf6 {[%clk 0:04:57.4]} 5. Nc3 {[%clk 0:04:52.9]}
5... g6 {[%clk 0:04:56.1]} 6. Be3 {[%clk 0:04:49.4]} 6... Bg7 {[%clk 0:04:54.7]}
7. Bc4 {[%clk 0:04:47.8]} 7... a6 {[%clk 0:04:49.4]} 8. Nge2 {[%clk 0:04:45.2]}
8... b5 {[%clk 0:04:47.4]} 9. Bb3 {[%clk 0:04:44.2]} 9... Bb7 {[%clk 0:04:46.1]}
10. a3 {[%clk 0:04:40.9]} 10... Nxe4 {[%clk 0:04:41.7]} 11. Nxe4 {[%clk
0:04:40.8]} 11... Bxe4 {[%clk 0:04:38.9]} 12. Nc3 {[%clk 0:04:39.3]} 12... Bxg2
{[%clk 0:04:29.6]} 13. Rg1 {[%clk 0:04:37.9]} 13... Bb7 {[%clk 0:04:26.5]} 14.
h4 {[%clk 0:04:35.5]} 14... Nd7 {[%clk 0:04:21.4]} 15. h5 {[%clk 0:04:34.6]}
15... Nf6 {[%clk 0:04:04.1]} 16. hxg6 {[%clk 0:04:32.1]} 16... fxg6 {[%clk
0:03:57.3]} 17. Qc2 {[%clk 0:04:25.1]} 17... Rc8 {[%clk 0:03:45]} 18. Qd2 {[%clk
0:04:21.6]} 18... d5 {[%clk 0:03:28]} 19. Bc2 {[%clk 0:04:16.2]} 19... O-O
{[%clk 0:03:18.7]} 20. Bh6 {[%clk 0:04:09.5]} 20... Qd7 {[%clk 0:02:54]} 21.
Bxg6 {[%clk 0:03:41.2]} 21... Qe6+ {[%clk 0:02:09]} 22. Ne2 {[%clk 0:03:28.8]}
22... Ng4 {[%clk 0:01:43.3]} 23. Bxg7 {[%clk 0:03:25.2]} 23... Kxg7 {[%clk
0:01:40.5]} 24. Bh5 {[%clk 0:03:17.7]} 24... Kh8 {[%clk 0:00:53.1]} 25. Bxg4
{[%clk 0:03:12.4]} 25... Qe4 {[%clk 0:00:40.1]} 26. Bf3 {[%clk 0:02:57.5]} 26...
Qxf3 {[%clk 0:00:27.9]} 27. Qg5 {[%clk 0:02:55.7]} 27... Qxf2+ {[%clk
0:00:22.3]} 28. Kd2 {[%clk 0:02:53.5]} 28... Rf7 {[%clk 0:00:13.9]} 29. Qe5+
{[%clk 0:02:48.7]} 29... Qf6 {[%clk 0:00:11.1]} 30. Qh5 {[%clk 0:02:34.9]} 30...
Qc6 {[%clk 0:00:03.9]} 31. Rac1 {[%clk 0:02:29.7]} 1-0

[Event "Live Chess"]
[Site "Chess.com"]
[Date "2023.05.20"]
[Round "-"]
[White "RoaringKnights"]
[Black "peter-785"]
[Result "0-1"]
[WhiteElo "931"]
[BlackElo "1159"]
[TimeControl "300"]
[EndTime "10:06:44 PDT"]
[Termination "peter-785 won on time"]

1. e4 {[%clk 0:04:58.7]} 1... c5 {[%clk 0:04:52.8]} 2. Bc4 {[%clk 0:04:57.7]}
2... d6 {[%clk 0:04:50.2]} 3. Nf3 {[%clk 0:04:56.2]} 3... e6 {[%clk 0:04:48.8]}
4. d4 {[%clk 0:04:54.5]} 4... cxd4 {[%clk 0:04:47.2]} 5. Nxd4 {[%clk 0:04:52.4]}
5... Nf6 {[%clk 0:04:46.1]} 6. Bg5 {[%clk 0:04:51]} 6... Be7 {[%clk 0:04:45.4]}
7. Nc3 {[%clk 0:04:45.3]} 7... O-O {[%clk 0:04:43.4]} 8. Nf3 {[%clk 0:04:43.7]}
8... Nbd7 {[%clk 0:04:38.6]} 9. O-O {[%clk 0:04:41.9]} 9... a6 {[%clk
0:04:33.4]} 10. Bxf6 {[%clk 0:04:35.6]} 10... Bxf6 {[%clk 0:04:30.7]} 11. Bb3
{[%clk 0:04:23.2]} 11... b5 {[%clk 0:04:28.9]} 12. a3 {[%clk 0:04:20.5]} 12...
Nc5 {[%clk 0:04:19.9]} 13. e5 {[%clk 0:04:13.8]} 13... dxe5 {[%clk 0:04:14.9]}
14. Qxd8 {[%clk 0:04:09]} 14... Rxd8 {[%clk 0:04:12.7]} 15. Rfe1 {[%clk
0:04:08.1]} 15... Nxb3 {[%clk 0:04:04.9]} 16. cxb3 {[%clk 0:04:06]} 16... Bb7
{[%clk 0:04:00.3]} 17. Nxe5 {[%clk 0:04:02.6]} 17... h6 {[%clk 0:03:55.5]} 18.
Ng4 {[%clk 0:03:53.6]} 18... Bg5 {[%clk 0:03:37.2]} 19. a4 {[%clk 0:03:40.7]}
19... b4 {[%clk 0:03:33.2]} 20. Ne2 {[%clk 0:03:00.8]} 20... Rd2 {[%clk
0:03:18.9]} 21. Ng3 {[%clk 0:02:56.4]} 21... Rxb2 {[%clk 0:03:10.4]} 22. Rab1
{[%clk 0:02:55.2]} 22... Rxb1 {[%clk 0:02:55.3]} 23. Rxb1 {[%clk 0:02:53.9]}
23... Rc8 {[%clk 0:02:50.1]} 24. Rd1 {[%clk 0:02:51.3]} 24... Rc1 {[%clk
0:02:38]} 25. Rxc1 {[%clk 0:02:47.4]} 25... Bxc1 {[%clk 0:02:36]} 26. f3 {[%clk
0:02:45.6]} 26... Bb2 {[%clk 0:02:20.2]} 27. Ne3 {[%clk 0:02:27]} 27... Bd4
{[%clk 0:02:10.6]} 28. Kf2 {[%clk 0:02:15.2]} 28... Bxe3+ {[%clk 0:02:09]} 29.
Kxe3 {[%clk 0:02:10.5]} 29... Bd5 {[%clk 0:02:08.3]} 30. Kd4 {[%clk 0:02:08.8]}
30... Bxb3 {[%clk 0:02:03.5]} 31. Kc5 {[%clk 0:02:02.9]} 31... a5 {[%clk
0:01:58.9]} 32. Kb5 {[%clk 0:01:56.1]} 32... Bd5 {[%clk 0:01:57.2]} 33. Kxa5
{[%clk 0:01:47.7]} 33... b3 {[%clk 0:01:55.7]} 34. Ne2 {[%clk 0:01:46]} 34...
Kf8 {[%clk 0:01:49.1]} 35. Nc3 {[%clk 0:01:42.8]} 35... Ke7 {[%clk 0:01:45]} 36.
Kb4 {[%clk 0:01:40.1]} 36... Kd7 {[%clk 0:01:29.3]} 37. a5 {[%clk 0:01:34.4]}
37... Kc6 {[%clk 0:01:24.8]} 38. Ka3 {[%clk 0:01:13.8]} 38... Kb7 {[%clk
0:01:04.8]} 39. Nxd5 {[%clk 0:01:09.9]} 39... exd5 {[%clk 0:01:03.4]} 40. Kxb3
{[%clk 0:01:08.9]} 40... Ka6 {[%clk 0:01:02.3]} 41. Kb4 {[%clk 0:01:07.5]} 41...
d4 {[%clk 0:00:56.5]} 42. Kc4 {[%clk 0:01:06.3]} 42... d3 {[%clk 0:00:55]} 43.
Kxd3 {[%clk 0:01:05.5]} 43... Kxa5 {[%clk 0:00:54.7]} 44. Ke4 {[%clk 0:01:04.3]}
44... Kb6 {[%clk 0:00:54.3]} 45. Kd5 {[%clk 0:01:03.6]} 45... Kc7 {[%clk
0:00:53.1]} 46. g4 {[%clk 0:01:00.1]} 46... Kd7 {[%clk 0:00:50.8]} 47. h4 {[%clk
0:00:57.6]} 47... Ke7 {[%clk 0:00:49]} 48. Ke5 {[%clk 0:00:56.4]} 48... g6
{[%clk 0:00:43.2]} 49. g5 {[%clk 0:00:47.7]} 49... h5 {[%clk 0:00:38.1]} 50. f4
{[%clk 0:00:44.6]} 50... Kf8 {[%clk 0:00:32.4]} 51. f5 {[%clk 0:00:37.3]} 51...
Kg7 {[%clk 0:00:27.7]} 52. f6+ {[%clk 0:00:30.6]} 52... Kf8 {[%clk 0:00:26.9]}
53. Kf4 {[%clk 0:00:28.4]} 53... Ke8 {[%clk 0:00:25.5]} 54. Ke5 {[%clk
0:00:26.9]} 54... Kd7 {[%clk 0:00:24.9]} 55. Kd5 {[%clk 0:00:22.7]} 55... Kc7
{[%clk 0:00:22.7]} 56. Kc5 {[%clk 0:00:18.7]} 56... Kd7 {[%clk 0:00:21.3]} 57.
Kd5 {[%clk 0:00:17.5]} 57... Kc7 {[%clk 0:00:19.5]} 58. Ke5 {[%clk 0:00:16.8]}
58... Kd7 {[%clk 0:00:18.9]} 59. Kf4 {[%clk 0:00:16.2]} 59... Ke6 {[%clk
0:00:18]} 60. Kg3 {[%clk 0:00:14.6]} 60... Kf5 {[%clk 0:00:17.1]} 61. Kh3 {[%clk
0:00:13.6]} 61... Kf4 {[%clk 0:00:16.3]} 62. Kh2 {[%clk 0:00:10.8]} 62... Kg4
{[%clk 0:00:15.1]} 63. Kg2 {[%clk 0:00:09.6]} 63... Kxh4 {[%clk 0:00:14.3]} 64.
Kh2 {[%clk 0:00:08.4]} 64... Kxg5 {[%clk 0:00:13.7]} 65. Kg3 {[%clk 0:00:08]}
65... Kxf6 {[%clk 0:00:13]} 66. Kh4 {[%clk 0:00:06.9]} 66... Kf5 {[%clk
0:00:12.6]} 67. Kg3 {[%clk 0:00:06]} 67... f6 {[%clk 0:00:11.9]} 68. Kh4 {[%clk
0:00:04.9]} 68... Ke5 {[%clk 0:00:08.5]} 69. Kh3 {[%clk 0:00:03.7]} 69... f5
{[%clk 0:00:07.8]} 70. Kh4 {[%clk 0:00:03.1]} 70... Kf6 {[%clk 0:00:07.4]} 71.
Kg3 {[%clk 0:00:02.4]} 71... g5 {[%clk 0:00:06.3]} 72. Kf3 {[%clk 0:00:01.7]}
72... h4 {[%clk 0:00:05.8]} 73. Kg2 {[%clk 0:00:00.4]} 73... Kg6 {[%clk
0:00:04.7]} 0-1

[Event "Live Chess"]
[Site "Chess.com"]
[Date "2023.05.20"]
[Round "-"]
[White "ramses-IIG"]
[Black "MaximKris"]
[Result "0-1"]
[WhiteElo "744"]
[BlackElo "1845"]
[TimeControl "300"]
[EndTime "10:06:45 PDT"]
[Termination "MaximKris won by checkmate"]

1. e4 {[%clk 0:04:58.8]} 1... e5 {[%clk 0:04:58.7]} 2. Nf3 {[%clk 0:04:58.7]}
2... Nc6 {[%clk 0:04:57.3]} 3. Bb5 {[%clk 0:04:53.2]} 3... a6 {[%clk 0:04:55.5]}
4. Bxc6 {[%clk 0:04:50.8]} 4... dxc6 {[%clk 0:04:55.4]} 5. d3 {[%clk 0:04:48.4]}
5... Bd6 {[%clk 0:04:53.8]} 6. O-O {[%clk 0:04:46.6]} 6... Bg4 {[%clk
0:04:53.3]} 7. Nc3 {[%clk 0:04:41.4]} 7... h5 {[%clk 0:04:52.2]} 8. h3 {[%clk
0:04:39.3]} 8... Nf6 {[%clk 0:04:50.2]} 9. hxg4 {[%clk 0:04:33.4]} 9... hxg4
{[%clk 0:04:39.5]} 10. Ng5 {[%clk 0:04:30.2]} 10... Bc5 {[%clk 0:04:25.6]} 11.
Na4 {[%clk 0:04:15.5]} 11... Ba7 {[%clk 0:03:48.2]} 12. c3 {[%clk 0:04:07.6]}
12... b5 {[%clk 0:03:35.1]} 13. d4 {[%clk 0:03:48.3]} 13... bxa4 {[%clk
0:03:26.5]} 14. dxe5 {[%clk 0:03:47.1]} 14... Qxd1 {[%clk 0:03:26.1]} 15. Rxd1
{[%clk 0:03:46.5]} 15... Nh5 {[%clk 0:03:08.5]} 16. b3 {[%clk 0:03:10.4]} 16...
Ng3 {[%clk 0:02:59.6]} 17. Nh3 {[%clk 0:02:42.4]} 17... gxh3 {[%clk 0:02:56.6]}
18. Kh2 {[%clk 0:02:40.5]} 18... hxg2+ {[%clk 0:02:48.9]} 19. Kxg3 {[%clk
0:02:38.3]} 19... Rh1 {[%clk 0:02:48]} 20. Be3 {[%clk 0:02:27.3]} 20... Bxe3
{[%clk 0:02:37.2]} 21. fxe3 {[%clk 0:02:25]} 21... Rxd1 {[%clk 0:02:35.1]} 22.
Rxd1 {[%clk 0:02:22.6]} 22... axb3 {[%clk 0:02:35]} 23. axb3 {[%clk 0:02:21.1]}
23... Rd8 {[%clk 0:02:17.4]} 24. Ra1 {[%clk 0:02:14.9]} 24... Rd3 {[%clk
0:02:11.3]} 25. Kxg2 {[%clk 0:02:12.3]} 25... Rxe3 {[%clk 0:02:08.8]} 26. Rxa6
{[%clk 0:02:07.9]} 26... Rxc3 {[%clk 0:02:08]} 27. b4 {[%clk 0:02:04.6]} 27...
Kd7 {[%clk 0:02:02.7]} 28. Kf2 {[%clk 0:02:01.6]} 28... Ke6 {[%clk 0:01:54.6]}
29. Ke2 {[%clk 0:01:59.9]} 29... Kxe5 {[%clk 0:01:52.8]} 30. Kd2 {[%clk
0:01:59]} 30... Rc4 {[%clk 0:01:50.8]} 31. Kd3 {[%clk 0:01:56.1]} 31... Rxb4
{[%clk 0:01:49.3]} 32. Rxc6 {[%clk 0:01:54.5]} 32... Rd4+ {[%clk 0:01:48.7]} 33.
Kc3 {[%clk 0:01:52.6]} 33... Rxe4 {[%clk 0:01:47.3]} 34. Rxc7 {[%clk 0:01:51.3]}
34... Ke6 {[%clk 0:01:45]} 35. Rc8 {[%clk 0:01:49.2]} 35... Rf4 {[%clk 0:01:43]}
36. Rg8 {[%clk 0:01:46.7]} 36... g6 {[%clk 0:01:40.8]} 37. Re8+ {[%clk
0:01:44.8]} 37... Kf5 {[%clk 0:01:34.5]} 38. Rf8 {[%clk 0:01:42.6]} 38... f6
{[%clk 0:01:33.7]} 39. Kd3 {[%clk 0:01:39.6]} 39... g5 {[%clk 0:01:32.7]} 40.
Ra8 {[%clk 0:01:37.5]} 40... Rh4 {[%clk 0:01:31.3]} 41. Ra5+ {[%clk 0:01:35.8]}
41... Kg6 {[%clk 0:01:30.1]} 42. Rd5 {[%clk 0:01:33.4]} 42... Kh5 {[%clk
0:01:26.4]} 43. Rf5 {[%clk 0:01:30.3]} 43... Kg6 {[%clk 0:01:25.3]} 44. Rf3
{[%clk 0:01:28.2]} 44... f5 {[%clk 0:01:22.6]} 45. Ke3 {[%clk 0:01:25.9]} 45...
g4 {[%clk 0:01:20.8]} 46. Rf4 {[%clk 0:01:24.4]} 46... Kg5 {[%clk 0:01:19]} 47.
Rc4 {[%clk 0:01:18.2]} 47... Rh3+ {[%clk 0:01:11]} 48. Kd4 {[%clk 0:01:16.7]}
48... Rf3 {[%clk 0:01:09]} 49. Ke5 {[%clk 0:01:15.5]} 49... Re3+ {[%clk
0:01:07.5]} 50. Kd5 {[%clk 0:01:12.1]} 50... Re4 {[%clk 0:01:01]} 51. Rc6 {[%clk
0:01:08.9]} 51... g3 {[%clk 0:00:55.1]} 52. Rc3 {[%clk 0:01:02.8]} 52... Rg4
{[%clk 0:00:53.2]} 53. Rf3 {[%clk 0:01:00.2]} 53... f4 {[%clk 0:00:51.3]} 54.
Ke5 {[%clk 0:00:58.5]} 54... g2 {[%clk 0:00:46.9]} 55. Rh3 {[%clk 0:00:56]}
55... g1=Q {[%clk 0:00:45.3]} 56. Rh7 {[%clk 0:00:53.1]} 56... Qc5+ {[%clk
0:00:42.7]} 57. Ke6 {[%clk 0:00:50.2]} 57... Qc6+ {[%clk 0:00:42]} 58. Ke7
{[%clk 0:00:48.8]} 58... Qf6+ {[%clk 0:00:41]} 59. Ke8 {[%clk 0:00:45]} 59...
Qg6+ {[%clk 0:00:40.3]} 60. Rf7 {[%clk 0:00:43.5]} 60... Qxf7+ {[%clk
0:00:39.4]} 61. Kxf7 {[%clk 0:00:43.1]} 61... f3 {[%clk 0:00:39.3]} 62. Ke6
{[%clk 0:00:41.5]} 62... f2 {[%clk 0:00:39.2]} 63. Ke5 {[%clk 0:00:41.3]} 63...
f1=Q {[%clk 0:00:39.1]} 64. Kd5 {[%clk 0:00:39.8]} 64... Rg2 {[%clk 0:00:39]}
65. Kc5 {[%clk 0:00:38.5]} 65... Re2 {[%clk 0:00:38.9]} 66. Kb6 {[%clk
0:00:36.8]} 66... Qd1 {[%clk 0:00:38.8]} 67. Ka7 {[%clk 0:00:35.9]} 67... Rc2
{[%clk 0:00:38.7]} 68. Ka6 {[%clk 0:00:34.9]} 68... Qb1 {[%clk 0:00:38.6]} 69.
Ka7 {[%clk 0:00:34.7]} 69... Ra2# {[%clk 0:00:38.5]} 0-1

[Event "Live Chess"]
[Site "Chess.com"]
[Date "2023.05.20"]
[Round "-"]
[White "Hacker_2009"]
[Black "ProfPoisson"]
[Result "1-0"]
[WhiteElo "1899"]
[BlackElo "1093"]
[TimeControl "300"]
[EndTime "10:06:46 PDT"]
[Termination "Hacker_2009 won by checkmate"]

1. d4 {[%clk 0:04:57.6]} 1... e6 {[%clk 0:04:55.8]} 2. Nf3 {[%clk 0:04:53]} 2...
f5 {[%clk 0:04:52.4]} 3. c4 {[%clk 0:04:50]} 3... Nf6 {[%clk 0:04:49.5]} 4. Nc3
{[%clk 0:04:48.5]} 4... Bb4 {[%clk 0:04:46.6]} 5. e3 {[%clk 0:04:47.2]} 5...
Bxc3+ {[%clk 0:04:41.1]} 6. bxc3 {[%clk 0:04:47.1]} 6... O-O {[%clk 0:04:37.7]}
7. Be2 {[%clk 0:04:46]} 7... b6 {[%clk 0:04:30.1]} 8. O-O {[%clk 0:04:43.5]}
8... Bb7 {[%clk 0:04:27.3]} 9. Rb1 {[%clk 0:04:39.9]} 9... d6 {[%clk 0:04:20.7]}
10. Qb3 {[%clk 0:04:36.3]} 10... Qe8 {[%clk 0:04:12]} 11. c5 {[%clk 0:04:32.5]}
11... Kh8 {[%clk 0:03:55.8]} 12. cxd6 {[%clk 0:04:27.8]} 12... cxd6 {[%clk
0:03:51.1]} 13. Ng5 {[%clk 0:04:26.9]} 13... Qg6 {[%clk 0:03:39.7]} 14. e4
{[%clk 0:04:19.8]} 14... Nxe4 {[%clk 0:03:30]} 15. Nxe4 {[%clk 0:04:04.4]} 15...
Bxe4 {[%clk 0:03:27]} 16. f3 {[%clk 0:04:03.8]} 16... Bxb1 {[%clk 0:03:19.8]}
17. Qxb1 {[%clk 0:04:02.3]} 17... Nc6 {[%clk 0:03:04]} 18. f4 {[%clk 0:03:59.8]}
18... e5 {[%clk 0:02:56.2]} 19. fxe5 {[%clk 0:03:56]} 19... dxe5 {[%clk
0:02:53.6]} 20. d5 {[%clk 0:03:55]} 20... Ne7 {[%clk 0:02:46.2]} 21. Ba3 {[%clk
0:03:49.9]} 21... Rfe8 {[%clk 0:02:16.7]} 22. Rd1 {[%clk 0:03:41.3]} 22... Rac8
{[%clk 0:02:06.6]} 23. Bb5 {[%clk 0:03:39.2]} 23... Rxc3 {[%clk 0:01:47.3]} 24.
Bxe8 {[%clk 0:03:37.5]} 24... Qxe8 {[%clk 0:01:44]} 25. Qb4 {[%clk 0:03:35.8]}
25... Rxa3 {[%clk 0:01:13.3]} 26. Qxa3 {[%clk 0:03:27.8]} 26... Qh5 {[%clk
0:00:59.1]} 27. Rc1 {[%clk 0:03:22.1]} 27... f4 {[%clk 0:00:49.8]} 28. Qxe7
{[%clk 0:03:15.9]} 28... h6 {[%clk 0:00:42.7]} 29. d6 {[%clk 0:03:08.2]} 29...
Qe2 {[%clk 0:00:40.7]} 30. Qc7 {[%clk 0:03:03.7]} 30... Qe3+ {[%clk 0:00:30.9]}
31. Kh1 {[%clk 0:03:02.2]} 31... f3 {[%clk 0:00:29.1]} 32. Qc8+ {[%clk
0:02:53.6]} 32... Kh7 {[%clk 0:00:26.3]} 33. Qf5+ {[%clk 0:02:53]} 33... Kh8
{[%clk 0:00:21.5]} 34. Rc8# {[%clk 0:02:51.6]} 1-0

[Event "Live Chess"]
[Site "Chess.com"]
[Date "2023.05.20"]
[Round "-"]
[White "OBrightwell100"]
[Black "Nazarenko_vital"]
[Result "1-0"]
[WhiteElo "1324"]
[BlackElo "1587"]
[TimeControl "300"]
[EndTime "10:06:47 PDT"]
[Termination "OBrightwell100 won on time"]

1. e4 {[%clk 0:04:56]} 1... d5 {[%clk 0:04:55.5]} 2. exd5 {[%clk 0:04:54.2]}
2... Qxd5 {[%clk 0:04:54.8]} 3. Nc3 {[%clk 0:04:52.3]} 3... Qa5 {[%clk
0:04:53.5]} 4. d4 {[%clk 0:04:49.7]} 4... Nf6 {[%clk 0:04:52.1]} 5. Nf3 {[%clk
0:04:48.8]} 5... Bg4 {[%clk 0:04:50.8]} 6. Bd2 {[%clk 0:04:47.8]} 6... c6 {[%clk
0:04:49.4]} 7. Nd5 {[%clk 0:04:40.9]} 7... Qd8 {[%clk 0:04:45.5]} 8. Nxf6+
{[%clk 0:04:39.2]} 8... gxf6 {[%clk 0:04:44.1]} 9. h3 {[%clk 0:04:38.8]} 9...
Bh5 {[%clk 0:04:41.8]} 10. Be2 {[%clk 0:04:36.9]} 10... e6 {[%clk 0:04:39.9]}
11. Bc3 {[%clk 0:04:23.9]} 11... Qc7 {[%clk 0:04:38.2]} 12. Nd2 {[%clk
0:04:15.6]} 12... Bg6 {[%clk 0:04:29.1]} 13. Bf3 {[%clk 0:04:01.7]} 13... Nd7
{[%clk 0:04:19]} 14. Ne4 {[%clk 0:03:59.2]} 14... Bxe4 {[%clk 0:04:06.6]} 15.
Bxe4 {[%clk 0:03:56.6]} 15... Rg8 {[%clk 0:03:55.1]} 16. g3 {[%clk 0:03:50.7]}
16... h5 {[%clk 0:03:48.9]} 17. Qxh5 {[%clk 0:03:45.4]} 17... f5 {[%clk
0:03:41]} 18. Bd3 {[%clk 0:03:39.5]} 18... Nf6 {[%clk 0:03:39.9]} 19. Qf3 {[%clk
0:03:36.3]} 19... Nd5 {[%clk 0:03:28.4]} 20. Bd2 {[%clk 0:03:30.9]} 20... O-O-O
{[%clk 0:03:15.2]} 21. h4 {[%clk 0:03:28.9]} 21... Bg7 {[%clk 0:02:53]} 22. c3
{[%clk 0:03:25]} 22... Qb6 {[%clk 0:02:44.8]} 23. O-O-O {[%clk 0:03:20.7]} 23...
Nf6 {[%clk 0:02:31.9]} 24. h5 {[%clk 0:03:17.4]} 24... Ng4 {[%clk 0:02:25.3]}
25. Bxf5 {[%clk 0:03:08.4]} 25... Nh6 {[%clk 0:01:54.4]} 26. Bd3 {[%clk
0:02:52.8]} 26... Qa5 {[%clk 0:01:32]} 27. Kb1 {[%clk 0:02:45.3]} 27... Qb6
{[%clk 0:01:06.5]} 28. Bxh6 {[%clk 0:02:42.1]} 28... Bxh6 {[%clk 0:00:53.4]} 29.
Qxf7 {[%clk 0:02:40.8]} 29... Rh8 {[%clk 0:00:30.5]} 30. Qxe6+ {[%clk
0:02:37.8]} 30... Kb8 {[%clk 0:00:26.4]} 31. g4 {[%clk 0:02:26.9]} 31... Qc7
{[%clk 0:00:22.9]} 32. Qe5 {[%clk 0:02:23]} 32... Qxe5 {[%clk 0:00:17.1]} 33.
dxe5 {[%clk 0:02:22.9]} 33... Rhe8 {[%clk 0:00:13.2]} 34. Be2 {[%clk 0:02:18.6]}
34... Rxd1+ {[%clk 0:00:09.7]} 35. Rxd1 {[%clk 0:02:15.9]} 35... Rxe5 {[%clk
0:00:06.4]} 36. Bd3 {[%clk 0:02:12.6]} 36... Re8 {[%clk 0:00:02.2]} 37. Rf1
{[%clk 0:02:04.8]} 1-0